Cogmind - Beta 13 @@@ ROGUE MODE // 2024.07.25 @ 01:15:45 Player: Venar246 Result: Self-destructed Performance ------------- Evolutions (1) 500 Regions Visited (3) 600 Robots Destroyed (46) 230 Value Destroyed (1242) 1242 Prototype IDs (0) 0 Alien Tech Used (0) 0 Bonus (0) 0 TOTAL SCORE: 2572 Bonus ------- None Cogmind --------- Core Integrity 210/400 Matter 300/300 Energy 100/100 System Corruption 0% Temperature Cool (0) Movement Core (450) Ox8 Location -9/Materials Parts ------- > --- POWER (1) -------- (None) > --- PROPULSION (3) --- (None) > --- UTILITY (3) ------ Large Storage Unit Structural Scanner Targeting Computer > --- WEAPON (2) ------- EM Pulse Cannon > --- INVENTORY (15) --- Ion Engine Improved Heat Sink Medium Storage Unit Large Storage Unit High-capacity Matter Pod (200) Structural Scanner Structural Scanner Sensor Array Targeting Computer Targeting Computer ECM Suite ECM Suite Peak State ------------ > --- POWER ------------ Light Ion Engine > --- PROPULSION ------- Aluminum Leg Aluminum Leg Aluminum Leg > --- UTILITY ---------- Large Storage Unit Structural Scanner Targeting Computer > --- WEAPON ----------- EM Pulse Cannon EM Pulse Cannon > --- INVENTORY -------- Ion Engine Aluminum Leg Improved Heat Sink Medium Storage Unit Large Storage Unit High-capacity Matter Pod Structural Scanner Structural Scanner Sensor Array Targeting Computer Targeting Computer ECM Suite EM Pulse Cannon EM Pulse Cannon Rocket Launcher [Rating: 15] Favorites ----------- Power Ion Engine Engine Ion Engine Power Core Light Nuclear Core Propulsion Aluminum Leg Leg Aluminum Leg Utility Structural Scanner Device Structural Scanner Storage Large Storage Unit Processor Targeting Computer Weapon Small Laser Energy Gun Small Laser Energy Cannon EM Pulse Cannon Ballistic Gun Light Assault Rifle Launcher Rocket Launcher Build | -11 -10 -10 -9 ------- Run | Yrd Mat Min Mat Slots Evolved 2 | . . . 2 Power . | . . . . Propulsion 1 | . . . 1 Utility 1 | . . . 1 Weapon . | . . . . Parts Attached 39 | 7 14 5 13 Power 9 | 1 4 2 2 Engine 7 | 1 3 1 2 Core 2 | . 1 1 . Reactor . | . . . . Propulsion 12 | 2 5 2 3 Treads . | . . . . Leg 12 | 2 5 2 3 Wheel . | . . . . Hover . | . . . . Flight . | . . . . Utility 5 | 1 3 . 1 Device 1 | . 1 . . Storage 3 | 1 2 . . Processor 1 | . . . 1 Hackware . | . . . . Protection . | . . . . Artifact . | . . . . Weapon 13 | 3 2 1 7 Energy Gun 3 | 1 2 . . Energy Cannon 6 | . . . 6 Ballistic Gun 2 | 2 . . . Ballistic Cannon . | . . . . Launcher 2 | . . 1 1 Special Weapon . | . . . . Impact Weapon . | . . . . Slashing Weapon . | . . . . Piercing Weapon . | . . . . Special Melee Weapon . | . . . . Unidentified Prototypes . | . . . . Corrupted Parts 1 | . 1 . . System Corruption 1 | . 1 . . Parts Lost 18 | . 5 3 10 Power 6 | . 3 1 2 Propulsion 5 | . . 1 4 Utility . | . . . . Weapon 7 | . 2 1 4 Highest Loss Streak 8 | . 2 2 8 To Critical Strikes . | . . . . Average Slot Usage (%) 94 | . 96 99 84 Engine 9 | . 11 6 8 Core 2 | . 2 6 . Leg 27 | . 28 28 24 Device 12 | . 12 14 11 Storage 13 | . 14 14 11 Processor 2 | . . . 11 Energy Gun 10 | . 11 18 . Energy Cannon 4 | . . . 19 Ballistic Gun 10 | . 15 . . Launcher 1 | . . 9 . Naked Turns . | . . . . Heaviest Build 36 | 13 29 31 36 Greatest Support 30 | 20 20 20 30 Greatest Overweight (x) 8 | 2 1 1 8 Average Overweight (x) . | . . 1 1 Largest Inventory Capacity 15 | 8 15 15 15 Average Capacity 12 | 7 12 15 15 Most Carried 15 | 2 15 15 15 Average Carried 11 | 1 10 14 13 Final Capacity 15 | 8 15 15 15 Final Carried 15 | 2 15 14 12 Class Distribution -------------------- 81% | Mutant 18% | Scavenger-Mutant Dominant Class ---------------- Mutant | -10/Materials Mutant | -10/Mines Scavenger-Mutant | -9/Materials Resources | -11 -10 -10 -9 ----------- Run | Yrd Mat Min Mat Matter Collected 941 | 263 480 106 92 Remotely . | . . . . Salvage Created 1478 | . 869 199 410 Parts 108 | . 63 16 29 Haulers Intercepted 2 | . 2 . . Recyclers Shooed 8 | . 2 2 4 Parts Field Recycled . | . . . . Retrieved Matter . | . . . . Parts Self-Destructed . | . . . . Prevented . | . . . . Kills | -11 -10 -10 -9 ------- Run | Yrd Mat Min Mat Combat Hostiles Destroyed 37 | . 19 9 9 Guns 22 | . 19 3 . Cannons 7 | . . . 7 AOE 7 | . . 6 1 Classes Destroyed 8 | . 5 . 3 Worker 3 | . 1 1 1 Hauler 2 | . 2 . . Recycler 1 | . . . 1 Operator 2 | . 1 . 1 Watcher 1 | . . . 1 Swarmer 9 | . 3 3 3 Grunt 24 | . 16 6 2 Sentry 4 | . . . 4 Best Kill Streak 5 | . 5 5 5 Combat Bots Only 5 | . 5 5 3 Max Kills in Single Turn 3 | . 1 3 2 Gunslinging . | . . . . Exploded 3 | . . 3 1 Melee . | . . . . Uniques/NPCs Destroyed . | . . . . Combat | -11 -10 -10 -9 -------- Run | Yrd Mat Min Mat Hostile Shots Fired 253 | . 117 38 98 Missed 75 | . 39 14 22 Damage Taken 2198 | . 903 397 898 Core 358 | . 136 32 190 Absorbed by Shields . | . . . . Core Remaining (%) 66 | 100 . 32 . Volleys Fired 125 | 1 85 26 13 Largest 2 | 2 2 2 2 Hottest 126 | 40 80 80 126 Shots Fired 212 | 2 155 33 22 Gun 184 | 2 155 27 . Cannon 21 | . . . 21 Launcher 7 | . . 6 1 Special . | . . . . Kinetic 108 | 2 106 . . Thermal 53 | . 27 26 . Explosive 7 | . . 6 1 Electromagnetic 44 | . 22 1 21 Robot Hit Streak 9 | 2 7 8 9 Robot Miss Streak 4 | . 4 2 1 Penetration Max . | . . . . Secondary Targets 4 | . 4 . . Max Gunslinging Chain 1 | . 1 . . Shots Hit Robots 136 | 2 97 23 14 Core Hits 84 | 2 48 19 15 Critical Kills . | . . . . Critical Parts Destroyed 1 | . 1 . . Critical Strikes 3 | . 2 . 1 Destroy 1 | . 1 . . Corrupt 2 | . 1 . 1 Melee Attacks . | . . . . Impact . | . . . . Slashing . | . . . . Piercing . | . . . . Sneak Attacks . | . . . . Combat Hostiles . | . . . . Follow-up Attacks . | . . . . Damage Inflicted 2763 | 34 1149 760 820 Guns 1308 | 24 1065 219 . Cannons 425 | . . . 425 Explosions 887 | . . 534 353 Melee . | . . . . Ramming 143 | 10 84 7 42 Kinetic 680 | 24 656 . . Thermal 516 | . 208 219 89 Explosive 798 | . . 534 264 Electromagnetic 626 | . 201 . 425 Impact . | . . . . Slashing . | . . . . Piercing . | . . . . Highest Corruption 1 | . 1 1 . Average Corruption 1 | . 1 1 . Corruption Purged . | . . . . Corruption Blocked . | . . . . Effects 5 | . 3 2 . Message Errors 2 | . 2 . . Energy Discharges 2 | . . 2 . Alerts 1 | . 1 . . Overload Shots . | . . . . Overflow Damage 32 | . . 2 30 Projectiles 6 | . . . 6 Explosions 24 | . . 2 22 Melee 2 | . . . 2 Knockbacks . | . . . . Impact . | . . . . Kinetic . | . . . . Secondary . | . . . . Self-Inflicted Damage 129 | . . 81 48 Shots 4 | . . 3 1 Rammed 2 | . . . 2 Targets Rammed 39 | 3 18 3 15 Kicked 37 | 3 18 3 13 Crushed . | . . . . Highest Temperature 228 | . 228 144 75 Average Temperature 50 | . 53 57 30 Received Heat Transfer 873 | . 483 165 225 Siege Activations . | . . . . Robots Corrupted 1 | . . . 1 Combat Hostiles 1 | . . . 1 Parts Fried 2 | . . . 2 Impact Corruptions 1 | . . . 1 Robots Melted . | . . . . Combat Hostiles . | . . . . Parts Melted . | . . . . Heat Transferred 1050 | . 475 475 100 Parts Sabotaged . | . . . . Parts Stolen . | . . . . Parts Stripped . | . . . . Power Chain Reactions 1 | . . . 1 Alert | -11 -10 -10 -9 ------- Run | Yrd Mat Min Mat Peak Influence 337 | . 220 280 337 Initial 109 | . . 42 109 Average 119 | . 93 157 194 Maximum Alert Level 1 | . 1 1 1 Low Security (%) 77 | 100 89 62 45 Level 1 22 | . 10 37 54 Level 2 . | . . . . Level 3 . | . . . . Level 4 . | . . . . Level 5 . | . . . . High Security . | . . . . Max Security . | . . . . Squads Dispatched 4 | . 4 . . Investigation 2 | . 2 . . Extermination . | . . . . Reinforcement 2 | . 2 . . Assault . | . . . . Garrison . | . . . . Intercept . | . . . . Searches Triggered . | . . . . Construction Impeded . | . . . . Haulers Reinforced . | . . . . Active Scanning Responses . | . . . . Cargo Convoy Interrupts . | . . . . Stealth | -11 -10 -10 -9 --------- Run | Yrd Mat Min Mat Distress Signals 9 | . 4 . 5 Communications Jammed . | . . . . Distress Signals . | . . . . Times Spotted 64 | . 33 9 22 Peak Tracking Total 7 | . 5 5 7 Tactical Retreats 1 | . 1 . . Traps | -11 -10 -10 -9 ------- Run | Yrd Mat Min Mat Traps Triggered 3 | . 2 . 1 Indirectly . | . . . . Trap Hack Attempts . | . . . . Triggered . | . . . . Disarmed . | . . . . Reprogrammed . | . . . . Reused . | . . . . Traps Extracted . | . . . . Installed . | . . . . Triggered . | . . . . Machines | -11 -10 -10 -9 ---------- Run | Yrd Mat Min Mat Machines Disabled 3 | . 2 . 1 Max in Single Turn 2 | . 2 . 1 Machines Repaired . | . . . . Machines Dismantled . | . . . . Machines Sabotaged . | . . . . Overloaded Fab Kills . | . . . . Hacking | -11 -10 -10 -9 --------- Run | Yrd Mat Min Mat Machines Accessed 4 | . 3 . 1 Terminals 4 | . 3 . 1 Fabricators . | . . . . Repair Stations . | . . . . Recycling Units . | . . . . Scanalyzers . | . . . . Garrison Access . | . . . . Total Hacks 7 | . 6 . 1 Successful 2 | . 1 . 1 Failed 5 | . 5 . . Catastrophic . | . . . . Database Lockouts . | . . . . Manual 7 | . 6 . 1 Terminals 7 | . 6 . 1 Fabricators . | . . . . Repair Stations . | . . . . Recycling Units . | . . . . Scanalyzers . | . . . . Garrison Access . | . . . . Terminal Hacks 2 | . 1 . 1 Hauler Manifests 2 | . 1 . 1 Fabricator Hacks . | . . . . Repair Station Hacks . | . . . . Recycling Unit Hacks . | . . . . Scanalyzer . | . . . . Garrison Access Hacks . | . . . . Unauthorized Hacks . | . . . . Terminals . | . . . . Fabricators . | . . . . Repair Stations . | . . . . Recycling Units . | . . . . Scanalyzers . | . . . . Garrison Access . | . . . . Data Cores Recovered . | . . . . Used . | . . . . Hacking Detections 3 | . 2 . 1 Full Trace Events . | . . . . Feedback Events . | . . . . Feedback Blocked . | . . . . Robot Schematics Acquired . | . . . . Robots Built . | . . . . Authchips . | . . . . Time . | . . . . Total Robot Build Rating . | . . . . Part Schematics Acquired . | . . . . Parts Built . | . . . . Authchips . | . . . . Time . | . . . . Total Part Build Rating . | . . . . Parts Repaired . | . . . . Time . | . . . . Parts Recycled . | . . . . Recycled Matter . | . . . . Retrieved Matter . | . . . . Retrieved Components . | . . . . Parts Scanalyzed . | . . . . Part Schematics Acquired . | . . . . Parts Damaged . | . . . . Bothacking | -11 -10 -10 -9 ------------ Run | Yrd Mat Min Mat Used RIF Installer . | . . . . Robots Hacked . | . . . . Non-combat . | . . . . Combat . | . . . . Robot Hacks Applied . | . . . . Relay Couplers Released . | . . . . Fabnet Peak Effective % . | . . . . Robots Rewired . | . . . . Allies Hacked . | . . . . Hacks Repelled . | . . . . Allies | -11 -10 -10 -9 -------- Run | Yrd Mat Min Mat Total Allies . | . . . . Largest Group . | . . . . Highest-Rated Group . | . . . . Highest-Rated Ally . | . . . . Total Orders . | . . . . Ally Attacks . | . . . . Total Damage . | . . . . Kills . | . . . . Allies Corrupted . | . . . . Allies Melted . | . . . . Intel | -11 -10 -10 -9 ------- Run | Yrd Mat Min Mat Robot Analysis Total . | . . . . Derelict Logs Recovered 1 | . . 1 . Drone Launches . | . . . . Drone Recoveries . | . . . . Exploration | -11 -10 -10 -9 ------------- Run | Yrd Mat Min Mat Turns Passed 2156 | 96 1313 301 446 Spaces Moved 1004 | 65 679 120 140 Core 31 | 20 . . 11 Treads . | . . . . Legs 973 | 45 679 120 129 Wheels . | . . . . Hover . | . . . . Flight . | . . . . Fastest Speed 50 | 50 120 190 120 Average Speed 161 | 120 149 190 211 Slowest Speed 450 | 150 190 190 450 Overloaded Moves . | . . . . Propulsion Burnouts . | . . . . Robots Hopped . | . . . . Cave-ins Triggered . | . . . . Exploration Rate (%) 37 | 5 86 44 13 Regions Visited 3 Branch Regions 1 Pre-discovered Areas 1 | . . 1 . Known Exits Taken . | . . . . Unknown Exits Taken 3 | 1 1 1 . Scrap Searched . | . . . . Spaces Dug . | . . . . Terrain Destroyed 63 | . . 49 14 Melee . | . . . . Projectile . | . . . . AOE 63 | . . 49 14 Terrain Rammed . | . . . . Walls Destroyed . | . . . . Machines Disabled . | . . . . Actions | -11 -10 -10 -9 --------- Run | Yrd Mat Min Mat Total 1312 | 77 831 158 246 Wait 65 | . 5 . 60 Move 1001 | 64 678 119 140 Hop . | . . . . Pick Up 24 | 1 18 2 3 Fast Attach 21 | 7 6 2 6 Attach 8 | . . 2 6 Detach 2 | 1 . . 1 Swap 10 | . 8 1 1 Drop 17 | . 13 3 1 Fire 125 | 1 85 26 13 Melee . | . . . . Ram 2 | . . . 2 Kick 37 | 3 18 3 13 Crush . | . . . . Escape Stasis . | . . . . Rewire . | . . . . Trap . | . . . . Miscellaneous . | . . . . Route ------- -11/Scrapyard -10/Materials (discovered 4 exits: *Mat x3 / [*Min]) -10/Mines -9/Materials (discovered 1 exit: [*Sto]) History --------- Turn | Location | Event 21 | -11/Scrapyard | Discovered new exit (range 15) 97 | -11/Scrapyard | Entered Materials 312 | -10/Materials | Build established: Mutant 528 | -10/Materials | Discovered new exit (range 16) 641 | -10/Materials | Discovered new exit (range 8) 740 | -10/Materials | Discovered new exit (range 15) 1150 | -10/Materials | Core integrity fell below 50% 1181 | -10/Materials | Discovered new exit (range 16) 1410 | -10/Materials | Entered Mines 1448 | -10/Mines | Received a Rocket Launcher from a helpful Derelict 1702 | -10/Mines | Discovered new exit (range 5) 1711 | -10/Mines | Entered Materials 1711 | -9/Materials | Evolved 2 slots: Propulsion x1, Utility x1 1714 | -9/Materials | Discovered new exit (range 9) 2123 | -9/Materials | Lost 8 parts (2p3n3w) 2157 | -9/Materials | Self-destructed Last Messages --------------- 02088_ U-05 Engineer builds a Wall. 02089_ U-05 Engineer lays Concrete. 02090_ K-01 Serf collects debris. 02091_ U-05 Engineer lays Concrete. 02092_ U-05 Engineer builds a Wall. 02092_ Aluminum Leg destroyed. 02093_ U-05 Engineer lays Concrete. 02096_ S-10 Pest destroyed. 02097_ K-01 Serf collects debris. 02098_ Slammed into K-01 Serf. 02098_ Destabilizing: Core damaged (-20). 02099_ K-01 Serf collects debris. 02103_ Slammed into K-01 Serf. 02130_ R-06 Scavenger collects Corrupted Com. Wheel. 02130_ Acquired 5 matter. 02133_ R-06 Scavenger collects Lgt. Ion Engine. 02142_ R-06 Scavenger collects Lgt. Assault Rifle. 02152_ W-16 Scout sends out distress signal. Map ----- +----------------------------------------------------+ | ?????????????????????????????????????????????????? | | ?????????????????????????????????????????????????? | | ?????????????????????????????????????????????????? | | ?????????????????????????????????????????????????? | | ????????????????????????????????T ?????????????? | | ???????????????????????????????? ????????????? | | ???????????????????????????????? ???????????? | | ??????????????????????????????? ##???????????? | | ???????????????????????????????## ##???????????? | | ???????????????????????????????## ##?########### | | ???????????????????????????????## ##?########### | | ???????????????????????????????## ##?## # | | ???????????????????????????????## ##?## # | | ???????????????????????????????## ##?## # | | ???????????????????????????????## ##?## + | | ??????????????????????????? ?## ##?## # | | ??????????????###?????????##+#### ##?## # | | ??????????????###?????????## #### ##?######### | | ?????????????? ????????# | ### ########### | | ????????????????? ????? ### ########### | | ?????????????????? ????# ### ## ### < | | ????????????????### s #### ### # ! ### | | ????????????????#####s###### ###% # ### | | ????????????????## w s/ ^ % + """ #####/ | | ????????????????##= """s## ^% # """ ## | | ????????????????## """@##^ % # """ ## "" | | ????????????????## " " ## ######### """ | | ????????????????## r # ^ "" "######### """ | | ????????????????## " " % k "" T##?????## """ | | ????????????????## "R" # == """ "######### "" | | ????????????????## """ ##=% ######### | | ????????????????## ## ! + | | ????????????????############%################# | | ????????????????############ ##################### | | ????????????????????########%##?????????????###### | | ??????????????????????????## ##??????????????????? | | ??????????????????????????##/##??????????????????? | | ??????????????????????????# ??????????????????? | | ??????????????????????????? ???????????????????? | | ??????????????????????????? ???????????????????? | | ??????????????????????????? ???????????????????? | | ??????????????????????????? ???????????????????? | | ????????????????????????? # ???????????????????? | | ????????????????????????? # ??????????????????? | | ?????????????????????????## ??????????????????? | | ?????????????????????????## ! ?????????????????? | | ?????????????????????????###+###?????????????????? | | ??????????????????????????## ## ?????????????????? | | ?????????????????????????????????????????????????? | | ?????????????????????????????????????????????????? | +----------------------------------------------------+ Best States ------------- Heat Dissipation 28 Energy Generation 14 Energy Capacity 250 Matter Stores 300 Matter Capacity 300 Sight Range 16 Terrain Scan Density 10 Evasion (%) 55 Targeting Accuracy 5 Item Schematics ----------------- None Robot Schematics ------------------ None Fabricated ------------ Nothing Alien Tech Used ----------------- None Achievements -------------- None Challenges ------------ None Game ------ Seed WeightRegenerativeDerivative Manual? 0 Play Time 00:16:17 Cumulative 29.6 hours Start 2024.07.25 @ 00:59:49 End 2024.07.25 @ 01:15:45 Sessions 1 Manual Loads 0 Difficulty Rogue Special Mode None Game No. 56 Rogue 56 Adventurer 0 Explorer 0 Win Type - Total 1 Types 1/0/0/0/0/0/0/0/0 Lore% 26 Gallery% 35 Achievement% 28 Wizard Run 0 Options --------- Layout 1 ASCII 0 Keyboard 0 Movement Arrows Keybinds 0 Fullscreen 1 Font 32/SmallcapsGlow Map View 50x35 Zoom Use 0% Tactical HUD 1 Map Filters NONE Filters NONE Steam 1 RUN: 59a3a1f1-dfe0-453e-b29a-88cfb075008d